bitfinex-derivatives/quotes_ETHF0:USTF0_20250314
["timestamp","ask_amount","ask_price","bid_price","bid_amount"]
[1741931180148,5.65621,1896.4,1896.3,1.9862]
[1741931180747,5.65621,1896.4,1896.3,1.2984]
[1741931181151,2.44841,1896.4,1896.3,1.2984]
[1741931181348,5.65621,1896.4,1896.3,1.2984]
[1741931181648,2.44841,1896.4,1896.3,1.2984]
[1741931183447,1.3936,1896.4,1896.3,1.2984]
[1741931184849,1.3936,1896.4,1896.3,2.35327]
[1741931185046,1.3936,1896.4,1896.3,1.2984]
[1741931185253,2.44841,1896.4,1896.3,1.2984]
[1741931186447,2.251,1896.5,1896.3,5.56107]
[1741931186651,3.6368,1896.5,1896.4,0.7101]
[1741931186859,4.69156,1896.5,1896.4,2.0607]
[1741931188451,4.69156,1896.5,1896.4,1.3506]
[1741931189852,2.44056,1896.5,1896.4,1.3506]
[1741931190045,4.68956,1896.5,1896.4,1.3506]
[1741931191255,1.05487,1896.3,1896.2,0.7015]
[1741931191453,1.05487,1896.3,1896.2,2.0167]
[1741931191956,1.74507,1896.3,1896.2,2.0167]
[1741931192156,1.05493,1896.2,1896.1,4.6217]
[1741931192355,2.40803,1896.2,1896.1,5.2876]
[1741931192656,3.09113,1896.2,1896.1,5.2876]
[1741931193462,3.09113,1896.2,1896.1,2.0798]
[1741931193758,5.34113,1896.2,1896.1,2.0798]
[1741931196956,5.34113,1896.2,1896.1,0.7646]
[1741931197260,5.34113,1896.2,1895.8,0.1075]
[1741931197261,1.05509,1895.9,1895.8,0.1075]
[1741931198655,4.72819,1895.9,1895.8,1.4303]
[1741931199161,4.72819,1895.9,1895.8,0.1075]
[1741931201260,1.05515,1895.8,1895.7,3.2078]
[1741931201463,3.19725,1895.8,1895.7,3.2078]
[1741931202765,1.05526,1895.6,1895.5,1.3228]
[1741931203158,3.30526,1895.6,1895.5,1.3228]
[1741931203460,4.74286,1895.6,1895.5,1.3228]
[1741931205360,3.6876,1895.6,1895.5,2.37812]
[1741931205563,2.25,1895.6,1895.5,2.37812]
[1741931205762,3.30526,1895.6,1895.5,1.3228]
[1741931207367,3.31212118,1895.7,1895.5,2.37808]
[1741931207567,2.25690118,1895.7,1895.5,1.3228]
[1741931207769,2.25690118,1895.7,1895.4,4.6466]
[1741931208071,2.25690118,1895.7,1895.5,1.05529]
[1741931208072,3.31214118,1895.7,1895.5,1.05529]
[1741931208458,1.05529,1895.6,1895.4,4.6466]
[1741931208659,1.05529,1895.6,1895.5,1.05532]
[1741931208858,3.31215118,1895.7,1895.5,1.05532]
[1741931209059,3.31215118,1895.7,1895.5,1.05529]
[1741931209268,3.31215118,1895.7,1895.4,4.6466]
[1741931209458,2.25690118,1895.7,1895.4,4.6466]
[1741931209663,2.25690118,1895.7,1895.6,1.05526]
[1741931209863,1.05526,1895.6,1895.4,4.6466]
[1741931210068,4.73150118,1895.7,1895.5,1.05527]
[1741931210369,3.67630118,1895.7,1895.6,1.05526]
[1741931210871,0.00790118,1895.7,1895.6,4.26306]
[1741931212764,1.36790118,1895.7,1895.6,4.26306]
[1741931213571,0.00790118,1895.7,1895.6,4.26306]
[1741931214773,3.302,1896.1,1895.9,1.05505]
[1741931214968,4.6883,1896.1,1896.0,0.6988]
[1741931215168,3.302,1896.1,1896.0,0.6988]
[1741931215577,3.313,1896.1,1896.0,0.6988]
[1741931216274,2.258,1896.1,1896.0,0.6988]
[1741931216473,3.31298,1896.1,1896.0,0.6988]
[1741931216772,4.01108,1896.1,1896.0,0.6988]
[1741931216972,2.9561,1896.1,1896.0,0.6988]
[1741931217872,2.9561,1896.1,1896.0,1.4034]
[1741931218072,4.01108,1896.1,1896.0,1.4034]
[1741931219578,4.01108,1896.1,1896.0,0.6988]
[1741931220173,1.05504,1896.0,1895.9,0.71250118]
[1741931220473,2.258,1896.1,1895.9,0.71250118]
[1741931220677,2.258,1896.1,1895.9,1.76758118]
[1741931220978,2.258,1896.1,1895.9,0.71250118]
[1741931221175,3.313,1896.1,1895.9,0.71250118]
[1741931221371,2.258,1896.1,1896.0,1.05504]
[1741931221575,0.00790118,1896.2,1896.0,1.05504]
[1741931221775,1.06283118,1896.2,1896.1,0.659]
[1741931223879,0.00790118,1896.2,1896.1,0.659]
[1741931224082,0.00790118,1896.2,1896.1,2.0713]
[1741931224277,1.06283118,1896.2,1896.1,2.0713]
[1741931225981,0.00790118,1896.2,1896.1,2.0713]
[1741931227084,0.00790118,1896.2,1896.1,3.12628]
[1741931228886,1.06283118,1896.2,1896.1,3.12628]
[1741931229075,1.06283118,1896.2,1896.1,2.0713]
[1741931230884,1.06283118,1896.2,1896.1,1.4123]
[1741931231482,0.00790118,1896.2,1896.1,1.4123]
[1741931232085,1.06283118,1896.2,1896.1,2.0842]
[1741931232780,2.50293118,1896.2,1896.1,2.0842]
[1741931233185,1.44800118,1896.2,1896.1,2.0842]
[1741931233484,2.50293118,1896.2,1896.1,2.0842]
[1741931235486,0.00790118,1896.2,1896.1,3.13918]
[1741931235688,1.43500118,1896.2,1896.1,3.13918]
[1741931236088,2.48993118,1896.2,1896.1,2.0842]
[1741931237090,1.05498,1896.1,1896.0,3.3153]
[1741931237394,4.73208,1896.1,1896.0,3.3153]
[1741931238690,4.73208,1896.1,1896.0,0.1075]
[1741931239188,3.6771,1896.1,1896.0,0.1075]
[1741931239386,4.73208,1896.1,1896.0,0.1075]
[1741931239684,7.93988,1896.1,1896.0,0.1075]
[1741931240085,8.02851755,1896.1,1896.0,0.1075]
[1741931240388,1.05504,1896.0,1895.9,0.00790118]
[1741931240591,3.87227755,1896.0,1895.9,0.00790118]
[1741931240985,2.81723755,1896.0,1895.7,1.3812]
[1741931241187,1.05515,1895.8,1895.7,1.3812]
[1741931241385,3.31015,1895.8,1895.7,1.3812]
[1741931241585,4.67445,1895.8,1895.7,1.3812]
[1741931244493,2.41945,1895.8,1895.7,1.3812]
[1741931244690,1.3643,1895.8,1895.7,1.3812]
[1741931244988,2.41945,1895.8,1895.7,1.3812]
[1741931246188,1.05526,1895.6,1895.5,1.3921]
[1741931246789,2.49526,1895.6,1895.5,1.3921]
[1741931247495,3.14696,1895.6,1895.5,1.3921]
[1741931248299,2.49526,1895.6,1895.5,1.3921]
[1741931249290,4.75026,1895.6,1895.5,1.3921]
[1741931251297,3.695,1895.6,1895.5,1.3921]
[1741931251493,4.75026,1895.6,1895.5,1.3921]
[1741931251694,2.49526,1895.6,1895.5,1.3921]
[1741931252093,1.05526,1895.6,1895.5,1.3921]
[1741931254503,3.6709,1895.7,1895.5,1.3921]
[1741931254703,3.30817,1895.8,1895.6,1.05524]
[1741931254895,3.30817,1895.8,1895.7,2.0633]
[1741931255099,3.30817,1895.8,1895.7,2.7234]
[1741931256206,4.26294,1895.9,1895.7,3.7786]
[1741931256504,2.253,1896.0,1895.8,5.60693]
[1741931256804,3.30808,1896.0,1895.9,1.344]
[1741931257303,2.253,1896.0,1895.9,2.39909]
[1741931257508,3.30804,1896.0,1895.9,1.344]
[1741931257703,4.71594,1896.0,1895.9,1.344]
[1741931258906,2.46294,1896.0,1895.9,1.344]
[1741931259611,1.05504,1896.0,1895.9,2.39909]
[1741931259908,1.05504,1896.0,1895.9,1.344]
[1741931261019,1.4138,1896.1,1895.9,1.344]
[1741931261215,2.46882,1896.1,1896.0,0.6837]
[1741931261514,2.46882,1896.1,1896.0,1.3571]
[1741931262614,1.4138,1896.1,1896.0,1.3571]
[1741931262919,2.46878,1896.1,1896.0,1.3571]
[1741931263214,1.05498,1896.1,1896.0,2.41214]
[1741931263415,1.313,1896.1,1896.0,2.41214]
[1741931263602,2.36798,1896.1,1896.0,2.41214]
[1741931264009,1.313,1896.1,1896.0,2.41214]
[1741931265610,2.36798,1896.1,1896.0,2.41214]
[1741931266413,1.313,1896.1,1896.0,2.41214]
[1741931268821,2.36798,1896.1,1896.0,2.41214]
[1741931269518,1.313,1896.1,1896.0,2.41214]
[1741931270119,3.31386118,1896.2,1896.0,2.41214]
[1741931270416,1.05498,1896.1,1896.0,2.41214]
[1741931270618,1.2982,1896.1,1896.0,2.41214]
[1741931272712,1.2982,1896.1,1896.0,5.61994]
[1741931275019,2.35318,1896.1,1896.0,5.61994]
[1741931275319,2.35318,1896.1,1896.0,4.5649]
[1741931275820,1.2982,1896.1,1896.0,2.41214]
[1741931276020,1.05509,1895.9,1895.8,5.978]
[1741931276918,2.35489,1895.9,1895.8,5.978]
[1741931278119,1.2998,1895.9,1895.8,7.03315]
[1741931280225,1.2998,1895.9,1895.8,5.978]
[1741931280412,1.2998,1895.9,1895.8,7.03315]
[1741931280619,2.35489,1895.9,1895.8,5.978]
[1741931280818,1.2998,1895.9,1895.8,7.03315]
[1741931281218,5.4548,1896.1,1895.8,5.978]
[1741931281417,7.8409,1896.1,1895.9,1.05506]
[1741931281723,1.3311,1896.0,1895.9,1.05506]
[1741931282524,2.38614,1896.0,1895.9,1.05506]
[1741931282727,2.38614,1896.0,1895.9,2.47676]
[1741931283824,2.38614,1896.0,1895.9,1.4217]
[1741931284026,1.3311,1896.0,1895.9,1.4217]
[1741931284331,1.3311,1896.0,1895.9,2.47679]
[1741931284624,3.30886118,1896.2,1896.0,1.05503]
[1741931284818,1.4301,1896.1,1896.0,2.44523]
[1741931286023,0.00790118,1896.2,1896.0,1.3902]
[1741931286326,1.43800118,1896.2,1896.1,1.05498]
[1741931286718,1.43800118,1896.2,1896.0,1.3902]
[1741931286919,2.49294118,1896.2,1896.1,1.05498]
[1741931287221,1.43800118,1896.2,1896.1,1.05498]
[1741931288231,2.49293118,1896.2,1896.1,1.05498]
[1741931288424,1.43800118,1896.2,1896.1,1.05498]
[1741931289923,0.00790118,1896.2,1896.1,1.05498]
[1741931291837,0.00790118,1896.2,1896.1,7.03298]
[1741931295031,3.2078,1896.5,1896.4,1.05481]
[1741931295231,4.5107,1896.5,1896.4,1.05481]
[1741931295735,1.3029,1896.5,1896.4,1.05481]
[1741931297237,0.00790118,1896.6,1896.5,1.05476]
[1741931297433,1.38880118,1896.6,1896.5,1.05476]
[1741931299334,0.00790118,1896.6,1896.5,1.05476]
[1741931301436,4.27043118,1896.6,1896.4,7.03278]
[1741931301627,1.3812,1896.5,1896.4,7.03281]
[1741931301936,2.0525,1896.5,1896.4,7.03281]
[1741931302738,2.0525,1896.5,1896.4,8.38951]
[1741931303537,3.10726,1896.5,1896.4,7.3347]
[1741931303740,2.0525,1896.5,1896.4,8.38951]
[1741931306444,2.0525,1896.5,1896.4,2.41151]
[1741931307639,0.00790118,1896.6,1896.5,1.05476]
[1741931307942,2.38679505,1896.9,1896.8,1.05459]
[1741931308137,1.3382,1896.9,1896.8,1.05459]
[1741931309437,0.00790118,1897.0,1896.9,1.05454]
[1741931309633,1.35150118,1897.0,1896.9,1.05454]
[1741931310338,2.254,1897.1,1897.0,1.05448]
[1741931310643,1.3436,1897.2,1897.0,1.05448]
[1741931310839,1.3436,1897.2,1897.1,3.12393]
[1741931311538,2.39797,1897.2,1897.1,2.0695]
[1741931311741,2.39797,1897.2,1897.1,1.3536]
[1741931312141,2.39797,1897.2,1896.9,1.74451]
[1741931312142,1.05447,1897.1,1896.9,1.74453]
[1741931312439,3.08237,1897.1,1897.0,1.3033]
[1741931312836,2.0279,1897.1,1897.0,1.3033]
[1741931313242,2.7309,1897.1,1897.0,1.3033]
[1741931314449,2.7309,1897.1,1897.0,2.35778]
[1741931314637,2.7309,1897.1,1897.0,1.3033]
[1741931314845,2.7309,1897.1,1897.0,2.35778]
[1741931315341,2.7309,1897.1,1897.0,1.3033]
[1741931316347,2.7309,1897.1,1897.0,2.35778]
[1741931316540,2.033,1897.1,1897.0,2.35778]
[1741931318039,1.33,1897.1,1897.0,2.35778]
[1741931320439,0.68550118,1897.3,1897.0,1.3033]
[1741931320642,0.00790118,1897.3,1897.2,1.05437]
[1741931320839,0.00790118,1897.3,1897.2,1.77297]
[1741931321036,0.00790118,1897.3,1897.2,5.65157]
[1741931322443,4.26202,1897.5,1897.3,1.05428]
[1741931322637,2.41086,1897.4,1897.3,1.4264]
[1741931323941,1.3566,1897.4,1897.3,1.4264]
[1741931324143,1.3566,1897.4,1897.3,2.48071]
[1741931326153,1.3566,1897.4,1897.3,1.4264]
[1741931326349,0.00790118,1897.5,1897.3,1.4264]
[1741931326648,0.00790118,1897.5,1897.4,4.26206]
[1741931326856,0.00790118,1897.5,1897.4,10.24006]
[1741931328646,0.00790118,1897.5,1897.4,9.1858]
[1741931329042,1.06210118,1897.5,1897.4,9.1858]
[1741931329247,0.00790118,1897.5,1897.4,11.67766]
[1741931329644,1.39360118,1897.5,1897.4,10.6234]
[1741931329855,1.39360118,1897.5,1897.4,4.6454]
[1741931330052,2.44780118,1897.5,1897.4,4.6454]
[1741931330356,2.44780118,1897.5,1897.4,3.2078]
[1741931330658,0.00790118,1897.5,1897.4,4.26206]
[1741931331355,1.39360118,1897.5,1897.4,4.26206]
[1741931333456,0.00790118,1897.5,1897.4,4.26206]
[1741931335057,1.40810118,1897.5,1897.4,4.26206]
[1741931335554,1.40810118,1897.5,1897.4,1.05426]
[1741931335756,1.40810118,1897.5,1897.4,4.26206]
[1741931336154,1.40810118,1897.5,1897.4,5.62756]
[1741931337753,0.00790118,1897.5,1897.4,5.62756]
[1741931338154,1.06210118,1897.5,1897.4,4.5733]
[1741931338357,1.06210118,1897.5,1897.4,3.2078]
[1741931338551,3.31710118,1897.5,1897.4,3.2078]
[1741931338761,4.66990118,1897.5,1897.4,3.2078]
[1741931340261,1.05426,1897.4,1897.3,7.37770118]
[1741931340447,1.3528,1897.4,1897.3,7.37770118]
[1741931340847,5.61486,1897.4,1897.3,7.37770118]
[1741931341757,5.61486,1897.4,1897.3,1.39970118]
[1741931341955,5.61486,1897.4,1897.3,0.00790118]
[1741931342455,1.05443,1897.1,1897.0,1.4206]
[1741931343062,2.0312,1897.1,1897.0,1.4206]
[1741931343254,2.0312,1897.1,1897.0,2.47508]
[1741931343460,1.3215,1897.1,1897.0,2.47508]
[1741931345657,1.3215,1897.1,1897.0,1.4206]
[1741931345863,2.37593,1897.1,1897.0,1.4206]
[1741931346054,2.37593,1897.1,1897.0,2.47508]
[1741931346055,1.3215,1897.1,1897.0,2.47508]
[1741931346255,1.3215,1897.1,1897.0,1.4206]
[1741931346561,2.37593,1897.1,1897.0,1.4206]
[1741931347559,1.3215,1897.1,1897.0,2.47508]
[1741931347756,2.37593,1897.1,1897.0,1.4206]
[1741931348253,1.3215,1897.1,1896.9,3.21570118]
[1741931348457,3.16098,1897.0,1896.9,0.00790118]
[1741931349264,3.16098,1897.0,1896.7,3.2078]
[1741931349265,1.05459,1896.8,1896.7,3.2078]
[1741931349459,2.255,1896.8,1896.6,1.408]
[1741931349663,1.0547,1896.6,1896.5,3.2078]
[1741931350057,2.4608,1896.6,1896.5,3.2078]
[1741931353760,1.05476,1896.5,1896.4,0.00790118]
[1741931353963,5.33166,1896.5,1896.4,0.00790118]
[1741931354160,5.33166,1896.5,1896.3,3.2078]
[1741931354161,6.7769,1896.5,1896.3,3.2078]
[1741931354367,1.05498,1896.1,1896.0,1.3754]
[1741931354554,1.05498,1896.1,1896.0,1.4051]
[1741931354764,3.2078,1896.1,1895.7,7.3423]
[1741931354958,1.05515,1895.8,1895.7,5.978]
[1741931355165,1.0552,1895.7,1895.6,1.4051]
[1741931355363,2.3746,1895.7,1895.6,1.41300118]
[1741931356062,1.3194,1895.7,1895.6,1.41300118]
[1741931356467,2.26790118,1895.9,1895.7,1.05517]
[1741931356668,4.69569118,1895.9,1895.8,1.3763]
[1741931357966,4.69569118,1895.9,1895.6,4.27093118]
[1741931358166,1.0552,1895.7,1895.6,0.00790118]
[1741931359066,2.42787,1895.8,1895.6,1.06316118]
[1741931359265,2.42787,1895.8,1895.6,2.43946118]
[1741931359565,3.32300118,1895.9,1895.7,1.0552]
[1741931359766,4.75370118,1895.9,1895.8,0.6788]
[1741931360171,4.75370118,1895.9,1895.8,2.0517]
[1741931360769,4.75369118,1895.9,1895.8,2.0517]
[1741931362673,4.75269118,1895.9,1895.8,2.0517]
[1741931364573,3.69760118,1895.9,1895.8,3.10685]
[1741931365472,3.69760118,1895.9,1895.8,2.0517]
[1741931365673,4.75269118,1895.9,1895.8,2.0517]
[1741931365876,4.75169118,1895.9,1895.8,2.0517]
[1741931367670,5.47179118,1895.9,1895.8,1.3729]
[1741931368578,3.69660118,1895.9,1895.8,1.3729]
[1741931369168,4.75169118,1895.9,1895.8,1.3729]
[1741931369363,0.00790118,1895.9,1895.8,2.42805]
[1741931369770,1.06299118,1895.9,1895.8,2.42805]
[1741931369977,0.00790118,1895.9,1895.8,2.42805]
[1741931370174,1.06299118,1895.9,1895.8,2.42805]
[1741931370375,0.00790118,1895.9,1895.8,2.42805]
[1741931371871,0.00790118,1895.9,1895.8,1.3729]
[1741931372074,2.40829118,1895.9,1895.8,1.3729]
[1741931374183,2.40829118,1895.9,1895.8,2.42805]
[1741931374779,2.40829118,1895.9,1895.8,1.3729]
[1741931376373,1.35320118,1895.9,1895.8,1.3729]
[1741931376580,1.35320118,1895.9,1895.8,2.42805]
[1741931377382,0.00790118,1895.9,1895.8,2.42805]
[1741931378183,0.00790118,1895.9,1895.8,5.63585]
[1741931380977,1.36160118,1895.9,1895.8,5.63585]
[1741931381482,1.36160118,1895.9,1895.8,4.5807]
[1741931381783,2.41669118,1895.9,1895.8,4.5807]
[1741931384691,1.36160118,1895.9,1895.8,5.63585]
[1741931387283,2.41669118,1895.9,1895.8,5.63585]
[1741931387486,2.41669118,1895.9,1895.8,4.5807]
[1741931387875,2.41669118,1895.9,1895.8,5.63585]
[1741931389486,2.41669118,1895.9,1895.8,1.3729]
[1741931393788,2.41669118,1895.9,1895.8,2.42805]
[1741931393988,2.41669118,1895.9,1895.8,1.3729]
[1741931398396,3.08159118,1895.9,1895.8,1.3729]
[1741931400395,0.00790118,1895.9,1895.8,2.42805]
[1741931402695,1.06299118,1895.9,1895.8,1.3729]
[1741931402891,2.46639118,1895.9,1895.8,1.3729]
[1741931403092,1.41130118,1895.9,1895.8,2.42805]
[1741931403485,0.00790118,1895.9,1895.8,2.42805]
[1741931405303,1.41130118,1895.9,1895.8,2.42805]
[1741931406699,2.46639118,1895.9,1895.8,2.42805]
[1741931406904,2.46639118,1895.9,1895.8,1.3729]
[1741931407301,1.41130118,1895.9,1895.8,1.3729]
[1741931407501,1.41130118,1895.9,1895.8,2.42805]
[1741931407703,2.46639118,1895.9,1895.8,2.42805]
[1741931408201,1.41130118,1895.9,1895.8,2.42805]
[1741931408894,0.00790118,1895.9,1895.8,2.42805]
[1741931410904,0.00790118,1895.9,1895.8,1.3729]
[1741931411102,3.13609118,1895.9,1895.8,2.42805]
[1741931411305,2.08100118,1895.9,1895.8,2.42805]
[1741931413701,3.13609118,1895.9,1895.8,2.42805]
[1741931414004,3.13609118,1895.9,1895.8,1.3729]
[1741931414311,2.08100118,1895.9,1895.8,2.42805]
[1741931415201,3.13609118,1895.9,1895.8,1.3729]
[1741931415405,2.08100118,1895.9,1895.7,3.2078]
[1741931415605,1.3966,1895.8,1895.7,4.5618]
[1741931415791,3.14555,1895.8,1895.7,4.5618]
[1741931416397,3.14555,1895.8,1895.7,1.354]
[1741931416593,2.0904,1895.8,1895.6,0.00790118]
[1741931416800,2.4518,1895.7,1895.6,0.00790118]
[1741931417202,2.4518,1895.7,1895.6,1.36190118]
[1741931423302,2.4518,1895.7,1895.6,0.00790118]
[1741931424108,5.6596,1895.7,1895.6,0.00790118]
[1741931424408,7.24247,1895.7,1895.2,3.2078]
[1741931424612,1.05541,1895.4,1895.3,1.3683]
[1741931425412,2.45781,1895.4,1895.3,1.3683]
[1741931427611,2.45781,1895.4,1895.1,1.3094]
[1741931427612,1.4024,1895.4,1895.1,1.3094]
[1741931427813,5.38703,1895.3,1895.2,1.3075]
[1741931428127,1.05554,1895.1,1895.0,3.2078]
[1741931428305,1.05554,1895.1,1895.0,4.5153]
[1741931428815,1.05565,1894.9,1894.8,3.9138]
[1741931429018,2.9236,1895.0,1894.8,3.9138]
[1741931429214,3.97922,1895.0,1894.8,3.9138]
[1741931429430,3.97921,1895.0,1894.8,3.9138]
[1741931430022,3.97921,1895.0,1894.9,1.3367]
[1741931431622,2.244,1895.0,1894.9,1.3367]
[1741931432723,3.29959,1895.0,1894.9,1.3367]
[1741931432922,4.70559,1895.0,1894.9,1.3367]
[1741931435714,1.3671,1895.2,1894.9,1.3367]
[1741931435919,4.70209,1895.2,1895.0,1.74947]
[1741931436132,4.70209,1895.2,1895.1,1.3294]
[1741931436424,4.70209,1895.2,1895.1,2.0441]
[1741931436621,2.244,1895.2,1895.1,3.09964]
[1741931437017,3.29948,1895.2,1895.1,2.0441]
[1741931437828,2.244,1895.2,1895.1,3.09964]
[1741931438525,1.4026,1895.5,1895.1,2.0441]
[1741931438734,3.6476,1895.5,1895.2,3.2078]
[1741931439031,4.70294,1895.5,1895.3,1.71799]
[1741931439225,2.245,1895.5,1895.4,1.05537]
[1741931439433,2.245,1895.5,1895.4,6.29117]
[1741931439623,3.30032,1895.5,1895.4,2.028]
[1741931440025,2.245,1895.5,1895.4,2.028]
[1741931440330,3.30032,1895.5,1895.4,2.028]
[1741931440533,3.30032,1895.5,1895.4,3.08337]
[1741931441226,2.245,1895.5,1895.4,3.08337]
[1741931442627,2.245,1895.5,1895.4,2.028]
[1741931442832,3.30032,1895.5,1895.4,2.028]
[1741931443430,4.65422,1895.5,1895.4,2.028]
[1741931444327,1.3539,1895.5,1895.4,2.028]
[1741931444928,1.3539,1895.5,1895.4,3.08337]
[1741931446121,2.40922,1895.5,1895.4,2.028]
[1741931446528,1.3539,1895.5,1895.4,2.028]
[1741931447029,2.40922,1895.5,1895.4,2.028]
[1741931448437,3.10342,1895.5,1895.4,2.028]
[1741931448744,3.10342,1895.5,1895.4,1.342]
[1741931453138,3.10342,1895.5,1895.2,4.26324]
[1741931453139,2.0481,1895.5,1895.2,3.2078]
[1741931453346,1.308,1895.4,1895.2,3.2078]
[1741931453541,1.77023,1895.3,1895.2,4.5797]
[1741931453843,4.01523,1895.3,1895.2,4.5797]
[1741931455633,4.01523,1895.3,1895.2,3.2078]
[1741931458847,2.9598,1895.3,1895.1,1.4175]
[1741931459044,3.14578,1895.2,1895.1,1.4175]
[1741931459842,2.49088,1895.2,1895.1,1.4175]
[1741931460232,2.49088,1895.2,1895.1,2.8178]
[1741931460641,2.49088,1895.2,1895.1,1.4175]
[1741931461941,1.4354,1895.2,1894.9,3.2078]
[1741931462138,3.09414,1895.1,1895.0,1.4073]
[1741931463342,3.09414,1895.1,1895.0,2.1123]
[1741931466243,1.3588,1895.1,1895.0,2.1123]
[1741931466447,2.41434,1895.1,1895.0,2.7887]
[1741931466846,1.3588,1895.1,1895.0,2.7887]
[1741931467047,1.05552,1895.2,1895.0,3.84429]
[1741931467249,4.71632,1895.2,1895.1,1.3496]
[1741931468144,1.4168,1895.2,1895.1,2.40514]
[1741931468450,3.29939,1895.4,1895.2,1.05544]
[1741931468650,3.29939,1895.4,1895.3,2.0675]
[1741931468855,1.4168,1895.5,1895.3,2.776]
[1741931469040,4.71614,1895.5,1895.4,1.3496]
[1741931469245,2.47214,1895.5,1895.4,1.3496]
[1741931469448,3.29934,1895.5,1895.4,1.3496]
[1741931471151,1.05534,1895.5,1895.4,1.3496]
[1741931471751,2.48524,1895.5,1895.4,1.3496]
[1741931472352,3.18844,1895.5,1895.4,1.3496]
[1741931475050,1.4299,1895.5,1895.4,2.40497]
[1741931475259,3.29929,1895.6,1895.4,2.40497]
[1741931475451,4.70139,1895.6,1895.5,1.3977]
[1741931476947,4.70139,1895.6,1895.3,4.6342]
[1741931476948,3.6461,1895.6,1895.3,1.4264]
[1741931477147,6.34652,1895.5,1895.4,1.3977]
[1741931477854,1.05542,1895.4,1895.1,4.2633]
[1741931478150,2.45752,1895.4,1895.2,3.13717]
[1741931478353,2.45752,1895.4,1895.3,1.3977]
[1741931479064,1.4021,1895.4,1895.3,1.3977]
[1741931479356,1.05536,1895.5,1895.3,1.3977]
[1741931479556,1.05536,1895.5,1895.4,0.6939]
[1741931479755,1.05537,1895.4,1895.3,1.3977]
[1741931490758,1.71537,1895.4,1895.3,1.3977]
[1741931491960,1.05552,1895.2,1895.0,7.03358]
[1741931492364,1.0555,1895.2,1895.0,7.03357]
[1741931492761,1.05554,1895.1,1895.0,5.978]
[1741931492961,2.9644,1895.3,1894.9,5.59321]
[1741931493260,1.05558,1895.1,1894.9,5.59321]
[1741931493462,1.05558,1895.1,1895.0,1.348]
[1741931496973,1.05559,1895.0,1894.9,3.2078]
[1741931497171,1.76339,1895.0,1894.9,3.2078]
[1741931497671,2.9644,1895.3,1894.9,4.5517]
[1741931497972,1.05554,1895.1,1895.0,2.0264]
[1741931498370,0.72,1895.2,1895.0,2.0264]
[1741931498570,1.77554,1895.2,1895.1,1.3439]
[1741931503571,3.2078,1895.4,1895.1,1.3439]
[1741931503966,4.26321,1895.4,1895.2,1.05547]
[1741931504167,4.26321,1895.4,1895.3,2.0904]
[1741931504368,6.51021,1895.4,1895.3,2.7809]
[1741931510676,1.05541,1895.4,1895.3,2.7809]
[1741931510887,3.29941,1895.4,1895.3,2.7809]
[1741931511991,1.05541,1895.4,1895.3,2.7809]
[1741931512773,2.43911,1895.4,1895.3,2.7809]
[1741931523695,1.05541,1895.4,1895.3,2.7809]
[1741931523992,3.2078,1895.6,1895.3,5.9887]
[1741931523993,3.29926,1895.6,1895.3,5.9887]
[1741931524192,4.70686,1895.6,1895.4,1.4197]
[1741931524394,1.4076,1895.5,1895.4,1.4197]
[1741931525594,3.6516,1895.6,1895.4,2.47506]
[1741931525790,2.244,1895.6,1895.5,1.05532]
[1741931525989,2.244,1895.6,1895.5,1.4197]
[1741931526195,3.29926,1895.6,1895.5,1.4197]
[1741931526394,1.4076,1895.6,1895.5,1.4197]
[1741931526696,1.05523,1895.7,1895.5,2.47502]
[1741931526897,2.46283,1895.7,1895.6,2.7775]
[1741931527106,3.29918,1895.8,1895.6,3.83276]
[1741931527411,3.29918,1895.8,1895.7,1.397]
[1741931527412,4.61758,1895.8,1895.7,1.397]
[1741931527808,0.00790118,1895.9,1895.7,1.397]
[1741931528002,0.00790118,1895.9,1895.8,1.05515]
[1741931528509,1.05491,1896.3,1896.0,1.055]
[1741931528811,3.29891,1896.3,1896.1,2.7953]
[1741931529011,3.29891,1896.3,1896.2,1.397]
[1741931529908,4.61731,1896.3,1896.2,1.397]
[1741931530507,3.5624,1896.3,1896.2,1.397]
[1741931530709,1.3184,1896.3,1896.2,1.397]
[1741931531807,1.3184,1896.3,1896.2,2.45193]
[1741931532014,0.00790118,1896.4,1896.3,1.05487]
[1741931532907,0.00790118,1896.4,1896.3,4.26267]
[1741931537916,0.00790118,1896.4,1896.3,10.24067]
[1741931540512,0.00790118,1896.4,1896.3,5.978]
[1741931540718,0.00790118,1896.4,1896.3,7.03287]
[1741931540919,1.34140118,1896.4,1896.3,8.44897]
[1741931541113,1.34140118,1896.4,1896.3,7.3941]
[1741931541920,2.39621118,1896.4,1896.3,7.3941]
[1741931542114,3.08561118,1896.4,1896.3,7.3941]
[1741931542621,2.03080118,1896.4,1896.3,8.44897]
[1741931543217,1.34140118,1896.4,1896.3,8.44897]
[1741931543820,1.34140118,1896.4,1896.3,2.47097]
[1741931544020,1.34140118,1896.4,1896.3,1.4161]
[1741931544521,2.39621118,1896.4,1896.3,1.4161]
[1741931545515,1.34140118,1896.4,1896.3,1.4161]
[1741931545714,1.34140118,1896.4,1896.3,2.47097]
[1741931546124,1.34140118,1896.4,1896.3,1.4161]
[1741931546622,2.39621118,1896.4,1896.3,1.4161]
[1741931549027,1.34140118,1896.4,1896.3,2.47097]
[1741931550028,2.39621118,1896.4,1896.3,1.4161]
[1741931550522,2.02100118,1896.4,1896.2,1.05489]
[1741931550727,1.4411,1896.3,1896.2,1.3161]
[1741931551027,2.49597,1896.3,1896.2,2.37103]
[1741931551227,1.4411,1896.3,1896.2,2.37103]
[1741931553521,2.49597,1896.3,1896.2,2.37103]